bitfinex/quotes_SOLUSD_20250118
["timestamp","ask_amount","ask_price","bid_price","bid_amount"]
[1737187700321,34.44361288,232.42,232.38,220.2]
[1737187700624,34.44361288,232.4,232.38,220.2]
[1737187701095,34.44361288,232.42,232.38,137.3]
[1737187702309,0.80661115,232.53,232.42,20.0]
[1737187702510,34.44361288,232.46,232.39,137.3]
[1737187702810,34.44361288,232.42,232.33,141.96]
[1737187703009,34.44361288,232.42,232.36,20.0]
[1737187703407,34.44361288,232.42,232.36,137.3]
[1737187703608,34.44361288,232.37,232.33,137.3]
[1737187703909,34.44361288,232.36,232.33,137.3]
[1737187704892,34.44361288,232.38,232.33,137.3]
[1737187705310,34.44361288,232.36,232.33,137.3]
[1737187705608,20.0,232.31,232.27,0.03]
[1737187705809,34.44361288,232.28,232.27,0.03]
[1737187706112,34.44361288,232.19,232.18,0.03]
[1737187706303,35.25140515,232.2,232.18,0.03]
[1737187706499,4.3068,232.19,232.18,0.03]
[1737187706725,34.44361288,232.22,232.18,0.03]
[1737187706903,34.44361288,232.24,232.18,0.03]
[1737187707208,34.44361288,232.3,232.21,157.3]
[1737187707408,34.44361288,232.28,232.21,157.3]
[1737187707608,34.44361288,232.28,232.21,137.3]
[1737187707811,34.44361288,232.24,232.21,137.3]
[1737187708010,34.44361288,232.22,232.18,0.03]
[1737187708205,34.44361288,232.2,232.18,0.03]
[1737187709093,0.80772283,232.19,232.18,0.03]
[1737187710101,20.0,232.17,232.14,0.03]
[1737187710302,34.44361288,232.15,232.14,0.03]
[1737187710726,38.75111288,232.15,232.14,0.03]
[1737187711298,20.0,232.12,232.03,0.03]
[1737187711597,34.44361288,232.04,232.03,0.03]
[1737187713316,0.80821902,232.11,232.03,0.03]
[1737187713519,34.44361288,232.08,232.03,0.03]
[1737187713719,34.44361288,232.08,232.03,137.33]
[1737187714103,34.44361288,232.1,232.03,137.33]
[1737187714322,34.44361288,232.08,232.03,137.33]
[1737187715111,34.44361288,232.06,232.03,137.33]
[1737187715813,34.44361288,232.04,232.03,0.03]
[1737187716521,34.44361288,232.04,231.88,2.04991943]
[1737187716522,20.0,232.01,231.88,2.04991943]
[1737187716720,68.88722576,231.89,231.7,0.03]
[1737187716901,34.44361288,231.76,231.7,0.03]
[1737187717109,38.75841288,231.76,231.7,0.03]
[1737187717432,20.0,231.68,231.65,0.535]
[1737187717609,34.44361288,231.72,231.65,0.535]
[1737187717610,34.44361288,231.66,231.65,0.535]
[1737187718017,68.88722576,231.66,231.43,9.4409]
[1737187718220,34.44361288,231.72,231.43,4.34877556]
[1737187718221,34.44361288,231.56,231.43,4.34877556]
[1737187718404,34.44361288,231.45,231.31,4.3232]
[1737187718603,0.81012813,231.55,231.32,5.16]
[1737187718604,34.44361288,231.51,231.32,5.16]
[1737187718903,34.44361288,231.49,231.33,5.16]
[1737187719111,34.44361288,231.49,231.36,20.0]
[1737187719321,34.44361288,231.37,231.08,2.00780064]
[1737187719522,34.44361288,231.35,231.15,3.23628768]
[1737187719827,34.44361288,231.2,231.15,3.23628768]
[1737187720010,34.44361288,231.16,231.15,3.23628768]
[1737187720606,69.69890304,231.16,231.06,0.13386932]
[1737187720806,34.44361288,231.11,231.06,0.13386932]
[1737187721008,34.44361288,231.13,231.06,0.13386932]
[1737187721223,0.81188683,231.16,231.06,0.13386932]
[1737187721224,34.44361288,231.11,231.06,0.13386932]
[1737187721535,0.81160137,231.12,230.88,12.16754583]
[1737187721536,54.44361288,231.07,230.88,12.16754583]
[1737187721836,54.44361288,231.07,230.75,150.5588686]
[1737187721837,34.44361288,230.98,230.79,10.8323]
[1737187722006,34.44361288,231.02,230.82,5.46]
[1737187722201,0.81197296,231.01,230.82,5.46]
[1737187722421,0.81197296,231.01,230.79,10.8323]
[1737187722629,34.44361288,231.04,230.8,5.46]
[1737187722924,15.1411,231.16,230.8,5.46]
[1737187722925,0.8119134,231.03,230.8,5.46]
[1737187723136,35.25540672,231.15,230.81,15.1639]
[1737187723431,34.44361288,231.13,230.81,103.65824063]
[1737187723725,0.81163098,231.12,230.84,20.0]
[1737187724036,34.44361288,231.13,230.85,5.5]
[1737187724209,0.81168859,231.12,230.85,5.5]
[1737187724726,34.44361288,231.1,230.88,20.0]
[1737187724925,0.81175075,231.09,230.85,5.5]
[1737187725123,0.81175075,231.09,230.86,4.3316]
[1737187725345,0.81175075,231.09,230.88,20.0]
[1737187725512,34.44361288,231.07,230.86,15.1606]
[1737187725832,34.44361288,231.03,230.87,5.52]
[1737187726129,0.81194207,231.07,230.89,20.0]
[1737187726622,0.81194207,231.07,230.86,20.6806]
[1737187726928,34.44361288,231.05,230.86,20.6806]
[1737187727132,34.44361288,231.03,230.89,20.0]
[1737187727338,0.81195424,231.02,230.86,20.6806]
[1737187727640,10.8153,231.16,230.86,20.6806]
[1737187727641,0.81178235,231.11,230.86,20.6806]
[1737187727822,34.44361288,231.1,230.86,15.1606]
[1737187728010,34.44361288,230.99,230.86,4.3316]
[1737187728327,0.81173123,230.98,230.86,4.3316]
[1737187728514,34.44361288,230.96,230.86,4.3316]
[1737187728714,34.44361288,231.02,230.86,4.3316]
[1737187728915,34.44361288,231.08,230.86,4.3316]
[1737187729118,34.44361288,231.06,230.8,20.0]
[1737187729309,34.44361288,231.0,230.78,15.1659]
[1737187729629,34.44361288,230.98,230.78,15.1659]
[1737187729830,34.44361288,231.03,230.78,15.1659]
[1737187730033,0.8119267,231.02,230.79,5.66]
[1737187730240,0.8119267,231.02,230.8,5.66]
[1737187730715,34.44361288,231.1,230.8,5.66]
[1737187731032,5.13735936,231.19,230.88,20.0]
[1737187731330,34.44361288,231.18,230.92,20.0]
[1737187731637,34.44361288,231.16,230.92,20.0]
[1737187731840,0.81151065,231.15,230.92,20.0]
[1737187732040,0.81135716,231.19,230.92,20.0]
[1737187732244,34.44361288,231.16,230.92,20.0]
[1737187732436,34.44361288,231.12,230.92,20.0]
[1737187732742,34.44361288,231.06,230.85,15.1613]
[1737187732912,34.44361288,231.06,230.86,5.68]
[1737187733208,0.81179264,231.05,230.87,4.3314]
[1737187733413,0.81182665,231.07,230.87,15.16]
[1737187733718,35.25534768,231.12,230.9,20.0]
[1737187733923,34.44361288,231.08,230.87,15.16]
[1737187734121,0.81180895,231.07,230.87,15.16]
[1737187734338,25.9156,231.52,230.89,353.61259082]
[1737187734632,34.44361288,231.31,230.9,155.79521775]
[1737187734822,34.44361288,231.26,230.91,12.88]
[1737187735026,0.80496444,231.25,230.98,20.0]
[1737187735224,21.08727566,231.45,230.98,20.0]
[1737187735225,35.24857732,231.34,231.03,20.0]
[1737187735411,35.24857732,231.34,231.04,0.64876252]
[1737187735618,0.80496444,231.34,231.07,20.0]
[1737187735939,35.24857732,231.34,231.11,20.0]
[1737187736143,34.44361288,231.22,231.01,5.82]
[1737187736334,34.44361288,231.24,231.02,6.50904449]
[1737187736641,34.44361288,231.28,231.05,20.0]
[1737187736828,25.24857732,231.28,231.05,20.0]
[1737187737028,34.44361288,231.27,231.05,20.0]
[1737187737230,34.44361288,231.27,231.06,4.97668928]
[1737187737547,34.44361288,231.27,231.06,4.3278]
[1737187737846,4.3224,231.35,231.06,4.3278]
[1737187738045,34.44361288,231.26,231.06,4.3278]
[1737187738255,34.44361288,231.28,231.06,4.3278]
[1737187738425,34.44361288,231.26,231.07,5.82]
[1737187738624,34.44361288,231.22,231.1,20.0]
[1737187739125,34.44361288,231.2,231.08,4.3275]
[1737187739422,34.44361288,231.26,231.08,4.3275]
[1737187739628,34.44361288,231.24,231.12,20.0]
[1737187739838,4.3224,231.35,231.12,20.0]
[1737187740040,4.3224,231.35,231.09,5.82]
[1737187740041,34.44361288,231.25,231.09,5.82]
[1737187740245,34.44361288,231.25,231.08,15.1462]
[1737187740539,34.44361288,231.27,231.1,4.3271]
[1737187740737,34.44361288,231.23,231.1,4.3271]
[1737187741143,34.44361288,231.21,231.1,4.3271]
[1737187741341,34.44361288,231.14,231.06,0.03]
[1737187741549,34.44361288,231.14,231.06,4.3577]
[1737187741854,34.44361288,231.16,231.06,4.3577]
[1737187742053,34.44361288,231.18,231.06,4.3577]
[1737187742256,12.0734,231.32,231.06,15.1774]
[1737187742257,34.44361288,231.2,231.06,15.1774]
[1737187742545,34.44361288,231.24,231.08,4.3275]
[1737187742749,34.44361288,231.22,231.08,4.3275]
[1737187743059,34.44361288,231.22,231.06,4.3577]
[1737187743847,34.44361288,231.21,231.06,4.3577]
[1737187744024,34.44361288,231.21,231.06,10.8497]
[1737187744435,34.44361288,231.23,231.06,10.8497]
[1737187744625,34.44361288,231.21,231.06,0.03]
[1737187744944,34.44361288,231.19,231.06,0.03]
[1737187745133,34.44361288,231.23,231.06,0.03]
[1737187745333,34.44361288,231.19,231.06,0.03]
[1737187745548,34.44361288,231.19,231.06,20.03]
[1737187745734,34.44361288,231.17,231.06,20.03]
[1737187746053,34.44361288,231.24,231.06,0.03]
[1737187746259,34.44361288,231.15,231.06,0.03]
[1737187746445,34.44361288,231.13,231.06,0.03]
[1737187746750,34.44361288,231.15,231.06,0.03]
[1737187747330,4.3246,231.23,231.06,0.03]
[1737187747643,34.44361288,231.18,231.06,0.03]
[1737187748252,34.44361288,231.2,231.06,0.03]
[1737187748428,34.44361288,231.18,231.06,0.03]
[1737187748748,34.44361288,231.16,231.06,0.03]
[1737187749341,34.44361288,231.18,231.06,0.03]
[1737187749943,4.3242,231.26,231.06,0.03]
[1737187750136,34.44361288,231.23,231.06,0.03]
[1737187750750,34.44361288,231.23,231.08,20.0]
[1737187751136,34.44361288,231.21,231.09,4.3273]
[1737187751331,34.44361288,231.19,231.09,4.3273]
[1737187751531,34.44361288,231.17,231.09,4.3273]
[1737187751736,34.44361288,231.19,231.09,4.3273]
[1737187752227,4.3249,231.22,231.06,0.03]
[1737187752228,34.44361288,231.1,231.06,0.03]
[1737187752429,34.44361288,231.07,231.06,0.03]
[1737187752647,34.44361288,231.07,230.84,5.8]
[1737187752831,34.44361288,230.98,230.86,4.3315]
[1737187753243,44.44361288,231.0,230.86,4.3315]
[1737187753430,34.44361288,230.98,230.86,4.3315]
[1737187753630,34.44361288,230.96,230.86,4.3315]
[1737187753846,34.44361288,230.98,230.86,4.3315]
[1737187754248,44.44361288,231.0,230.86,4.3315]
[1737187754440,10.0,231.0,230.86,4.3315]
[1737187755339,10.0,231.0,230.86,15.1605]
[1737187756147,10.0,231.0,230.89,20.0]
[1737187756350,10.0,231.0,230.9,0.64941967]
[1737187756565,10.0,231.0,230.89,20.0]
[1737187756766,10.0,231.0,230.86,15.1605]
[1737187758361,14.329,231.0,230.86,4.3315]
[1737187758960,34.44361288,230.95,230.84,4.3319]
[1737187759144,34.44361288,230.95,230.82,0.03]
[1737187759145,4.3301,230.94,230.82,4.3623]
[1737187759349,34.44361288,230.87,230.82,0.03]
[1737187759657,44.44361288,231.0,230.82,0.03]
[1737187759658,34.44361288,230.93,230.82,0.03]
[1737187759870,34.44361288,230.91,230.82,0.03]
[1737187760058,34.44361288,230.93,230.82,0.03]
[1737187760254,34.44361288,230.98,230.82,0.03]
[1737187761253,10.0,231.0,230.84,20.0]
[1737187762055,44.44361288,231.0,230.82,0.03]
[1737187762256,34.44361288,230.98,230.82,0.03]
[1737187762458,34.44361288,230.96,230.82,0.03]
[1737187762640,10.0,231.0,230.82,20.03]
[1737187762845,10.0,231.0,230.82,20.67952674]
[1737187763248,10.0,231.0,230.83,4.3321]
[1737187763451,3.13465596,230.99,230.83,4.3321]
[1737187763864,3.13465596,230.99,230.86,20.0]
[1737187764470,34.44361288,230.98,230.83,15.1625]
[1737187764654,6.29326535,230.98,230.83,15.1625]
[1737187765040,34.44361288,230.96,230.82,0.03]
[1737187765244,6.29326535,230.98,230.82,0.03]
[1737187765439,40.73687823,230.98,230.83,5.7]
[1737187765654,34.44361288,230.96,230.83,5.7]
[1737187765857,34.44361288,230.92,230.83,5.7]
[1737187766159,3.13465596,230.97,230.83,5.7]
[1737187766537,3.15847357,230.95,230.83,5.7]
[1737187766753,3.15847357,230.95,230.82,0.03]
[1737187766957,34.44361288,230.92,230.82,0.03]
[1737187767377,34.44361288,230.94,230.82,0.03]
[1737187767671,3.13465596,230.91,230.82,0.03]
[1737187768458,7.46545596,230.91,230.82,0.03]
[1737187768742,3.13465596,230.9,230.82,0.03]
[1737187769368,34.44361288,230.88,230.82,0.03]
[1737187770241,54.79220194,230.83,230.81,0.03]
[1737187770441,47.67220194,230.82,230.75,84.72148604]
[1737187770644,69.58440388,230.76,230.75,54.6663934]
[1737187770844,69.58440388,230.76,230.75,30.4471934]
[1737187771048,69.58440388,230.76,230.75,3.1735934]
[1737187771262,69.58440388,230.76,230.75,9.34e-05]
[1737187771672,34.79220194,230.66,230.65,0.03]
[1737187771968,58.4793,230.85,230.65,4.3654]
[1737187771969,34.79220194,230.81,230.65,4.3654]
[1737187772154,34.79220194,230.85,230.65,15.2043]
[1737187772359,34.79220194,230.87,230.68,20.0]
[1737187772558,34.79220194,230.89,230.68,20.0]
[1737187772967,34.79220194,230.95,230.69,0.64993676]
[1737187773156,10.0,231.0,230.73,20.0]
[1737187773356,10.0,231.0,230.74,141.73456683]
[1737187773562,5.45272263,231.0,230.75,5.82]
[1737187773863,9.763e-05,231.0,230.91,20.0]
[1737187774059,34.79220194,231.13,230.95,20.0]
[1737187774380,4.3247,231.23,230.96,15.154]
[1737187774547,34.85520194,231.24,230.99,20.0]
[1737187774896,0.063,231.24,231.0,3.785]
[1737187775170,0.063,231.24,231.08,20.0]
[1737187775375,0.063,231.27,231.12,20.0]
[1737187775549,6.58373825,231.34,231.14,0.2013]
[1737187775748,13.16747651,231.38,231.15,11.97114888]
[1737187775949,16.18431439,231.47,231.17,216.31259082]
[1737187776167,16.18431439,231.47,231.18,11.87667886]
[1737187776351,16.18431439,231.47,231.26,20.0]
[1737187776560,16.18431439,231.47,231.27,53.20805495]
[1737187776561,2.10837368,231.47,231.27,53.20805495]
[1737187776759,0.12990328,231.47,231.27,72.92193604]
[1737187776966,0.063,231.51,231.27,77.31648842]
[1737187777159,0.063,231.51,231.29,12.88]
[1737187777350,0.063,231.53,231.3,0.6478699]
[1737187777546,0.063,231.53,231.31,12.88]
[1737187777752,0.063,231.53,231.34,32.88]
[1737187778071,0.063,231.53,231.32,7.57589692]
[1737187778072,34.79220194,231.52,231.35,6.50779716]
[1737187778271,34.79220194,231.52,231.37,15.1272]
[1737187778457,34.79220194,231.5,231.37,15.1272]
[1737187778655,34.79220194,231.5,231.37,4.322]
[1737187779657,34.79220194,231.42,231.26,4.3241]
[1737187779852,34.79220194,231.38,231.26,4.3241]
[1737187780181,34.79220194,231.44,231.24,4.3244]
[1737187780356,34.79220194,231.46,231.27,20.0]
[1737187780555,34.79220194,231.44,231.27,20.0]
[1737187780964,34.79220194,231.42,231.27,20.0]
[1737187781167,34.79220194,231.45,231.27,20.0]
[1737187781480,34.79220194,231.43,231.27,20.0]
[1737187782179,34.79220194,231.45,231.27,20.0]
[1737187782684,34.79220194,231.43,231.31,20.0]
[1737187782861,34.79220194,231.41,231.31,20.0]
[1737187783063,34.79220194,231.43,231.31,20.0]
[1737187783377,34.79220194,231.4,231.28,4.3237]
[1737187783584,34.79220194,231.4,231.3,5.84]
[1737187783770,34.79220194,231.44,231.3,5.84]
[1737187783967,34.79220194,231.42,231.3,5.84]
[1737187784168,34.79220194,231.4,231.3,5.84]
[1737187784369,34.79220194,231.42,231.3,5.84]
[1737187784579,34.79220194,231.42,231.31,4.3232]
[1737187784878,34.79220194,231.4,231.31,4.3232]
[1737187785275,34.79220194,231.38,231.3,5.84]
[1737187785468,34.79220194,231.42,231.31,4.3232]
[1737187785661,34.79220194,231.4,231.31,4.3232]
[1737187785975,34.79220194,231.34,231.24,4.3245]
[1737187786183,34.79220194,231.38,231.24,4.3245]
[1737187786485,34.79220194,231.36,231.25,5.82]
[1737187786682,34.79220194,231.36,231.26,4.3241]
[1737187787092,34.79220194,231.38,231.29,20.0]
[1737187787589,0.063,231.45,231.29,20.0]
[1737187787786,34.79220194,231.39,231.26,15.1344]
[1737187788581,34.79220194,231.37,231.28,4.3237]
[1737187788786,34.79220194,231.35,231.27,10.1038]
[1737187788985,34.79220194,231.29,231.22,4.3248]
[1737187789183,34.79220194,231.36,231.2,14.33044924]
[1737187789184,34.79220194,231.27,231.2,14.33044924]
[1737187789371,34.79220194,231.23,231.17,5.78]
[1737187789579,34.79220194,231.29,231.17,10.1056]
[1737187789908,34.79220194,231.31,231.17,20.9201]
[1737187790075,34.79220194,231.33,231.2,20.0]
[1737187790602,34.79220194,231.35,231.2,20.0]
[1737187790772,34.79220194,231.35,231.21,15.1376]
[1737187790978,0.063,231.45,231.21,15.1376]
[1737187790979,34.79220194,231.33,231.21,15.1376]
[1737187791377,34.79220194,231.35,231.24,19.5]
[1737187791675,34.79220194,231.39,231.24,19.5]
[1737187791993,34.79220194,231.35,231.24,19.5]
[1737187792376,34.79220194,231.35,231.21,15.1376]
[1737187792377,34.79220194,231.32,231.22,5.76]
[1737187792783,34.79220194,231.3,231.23,4.3246]
[1737187793668,34.79220194,231.32,231.23,4.3246]
[1737187793868,34.79220194,231.32,231.23,15.1363]
[1737187794394,34.79220194,231.32,231.23,4.3246]
[1737187795086,34.79220194,231.27,231.14,15.1422]
[1737187795283,34.79220194,231.25,231.15,5.72]
[1737187795594,34.79220194,231.27,231.15,5.72]
[1737187795796,34.79220194,231.28,231.15,5.72]
[1737187797075,34.79220194,231.28,231.16,4.326]
[1737187797270,34.79220194,231.24,231.14,4.3262]
[1737187797476,34.79220194,231.23,231.14,4.3262]
[1737187797678,34.79220194,231.25,231.14,4.3262]
[1737187798095,34.79220194,231.28,231.14,15.1421]
[1737187798598,34.79220194,231.28,231.17,20.0]
[1737187798785,34.79220194,231.23,231.14,4.3262]
[1737187798988,34.79220194,231.23,231.11,15.1442]
[1737187799180,34.79220194,231.23,231.12,5.66]
[1737187799381,34.79220194,231.23,231.13,0.03]
[1737187799580,34.79220194,231.24,231.14,5.66]
[1737187799780,34.79220194,231.23,231.14,5.66]
[1737187800392,34.79220194,231.23,231.13,0.03]
[1737187800593,34.79220194,231.19,231.13,4.3564]
[1737187800790,34.79220194,231.17,231.13,0.03]
[1737187800977,34.79220194,231.21,231.13,4.3564]
[1737187801175,34.79220194,231.2,231.13,4.3564]
[1737187801380,34.79220194,231.21,231.13,4.3564]
[1737187801574,34.79220194,231.27,231.13,24.3564]
[1737187801795,34.79220194,231.29,231.13,24.3564]
[1737187801994,34.79220194,231.31,231.13,56.8056]
[1737187802309,4.3228,231.33,231.13,56.8056]
[1737187802310,34.79220194,231.26,231.13,4.3564]
[1737187802480,34.79220194,231.23,231.13,20.03]
[1737187803103,34.79220194,231.21,231.13,0.03]
[1737187803300,35.00913444,231.19,231.13,0.03]
[1737187803600,35.00913444,231.15,231.13,0.03]
[1737187804376,35.00913444,231.14,231.02,35.00913444]
[1737187804705,15.1363,231.23,231.06,35.00913444]
[1737187804883,35.00913444,231.11,231.02,39.33763444]
[1737187805390,35.00913444,231.07,230.99,35.00913444]
[1737187805702,35.00913444,231.01,230.93,0.03]
[1737187805887,35.00913444,230.95,230.93,0.03]
[1737187806998,39.33913444,230.95,230.93,0.03]
[1737187807495,35.00913444,230.95,230.93,0.03]
[1737187807802,35.00913444,231.01,230.93,0.03]
[1737187808106,35.00913444,231.06,230.98,35.00913444]
[1737187808283,35.00913444,231.04,230.96,35.00913444]
[1737187808884,35.00913444,231.04,230.94,39.33923444]
[1737187809202,35.00913444,231.02,230.94,39.33923444]
[1737187809402,35.00913444,230.98,230.93,0.03]
[1737187809783,15.1442,231.11,230.93,0.03]
[1737187809784,35.00913444,231.0,230.93,4.3601]
[1737187810201,35.00913444,231.02,230.94,35.00913444]
[1737187810582,35.00913444,231.04,230.96,35.00913444]
[1737187810802,35.00913444,231.08,230.99,4.3291]
[1737187810994,35.00913444,231.1,231.02,35.00913444]
[1737187811607,35.00913444,231.1,231.0,35.00913444]
[1737187811906,35.00913444,231.08,231.0,35.00913444]
[1737187812587,35.00913444,231.1,231.0,35.00913444]
[1737187812908,35.00913444,231.1,231.01,4.3288]
[1737187813411,0.063,231.24,231.09,35.00913444]
[1737187813579,0.063,231.24,231.17,35.00913444]
[1737187813785,0.063,231.24,231.19,35.00913444]
[1737187814005,0.063,231.24,231.23,35.00913444]
[1737187815003,0.063,231.24,231.23,39.33373444]
[1737187815911,41.84301544,231.37,231.23,50.14543444]
[1737187816087,41.84301544,231.37,231.29,35.00913444]
[1737187816590,6.833881,231.37,231.31,35.00913444]
[1737187816786,6.833881,231.37,231.24,35.00913444]
[1737187816787,6.833881,231.37,231.33,35.00913444]
[1737187816991,35.00913444,231.43,231.35,35.00913444]
[1737187817588,35.07213444,231.45,231.37,35.00913444]
[1737187817795,0.063,231.45,231.39,35.00913444]
[1737187818002,0.063,231.45,231.43,35.00913444]
[1737187818383,35.07213444,231.45,231.38,5.56]
[1737187818891,35.07213444,231.45,231.38,9.8817]
[1737187819401,35.07213444,231.45,231.38,44.89083444]
[1737187820302,0.063,231.45,231.4,35.00913444]
[1737187820506,0.063,231.45,231.42,35.00913444]
[1737187821109,0.063,231.45,231.42,39.33023444]
[1737187822086,0.063,231.45,231.42,4.3211]
[1737187822286,0.063,231.45,231.44,35.00913444]
[1737187823210,0.063,231.45,231.44,39.32983444]
[1737187823613,0.063,231.48,231.44,39.32983444]
[1737187823822,0.063,231.48,231.47,35.00913444]
[1737187824014,0.0001,231.48,231.47,35.00913444]
[1737187824198,0.0001,231.51,231.5,20.0]
[1737187824397,0.0001,231.51,231.5,55.00913444]
[1737187824800,0.0001,231.51,231.5,35.00913444]
[1737187825604,0.0001,231.51,231.5,39.32873444]
[1737187825804,0.0001,231.53,231.52,20.0]
[1737187826111,0.0001,231.53,231.52,60.52913444]
[1737187827424,0.0001,231.53,231.52,64.84833444]
[1737187829724,0.063,231.61,231.52,75.64653444]
[1737187829934,0.063,231.61,231.58,35.00913444]
[1737187830416,0.063,231.61,231.6,55.00913444]
[1737187831130,0.063,231.61,231.58,5.44]
[1737187831626,0.063,231.61,231.58,40.44913444]
[1737187831818,0.063,231.61,231.59,4.3179]
[1737187833128,0.063,231.61,231.6,35.00913444]
[1737187834245,0.063,231.61,231.59,4.3179]
[1737187834527,0.063,231.61,231.53,39.32813444]
[1737187834731,35.00913444,231.6,231.51,4.3193]
[1737187834923,35.00913444,231.6,231.51,39.32843444]
[1737187835113,35.00913444,231.6,231.53,35.00913444]
[1737187835320,0.063,231.61,231.53,35.00913444]
[1737187835633,0.063,231.61,231.55,35.00913444]
[1737187836012,0.063,231.61,231.59,35.00913444]
[1737187836613,35.00913444,231.7,231.62,20.0]
[1737187836812,35.00913444,231.7,231.63,35.00913444]
[1737187837021,35.00913444,231.72,231.63,35.00913444]
[1737187837433,35.00913444,231.68,231.64,5.38]
[1737187837736,35.00913444,231.7,231.64,5.38]
[1737187838232,35.00913444,231.7,231.65,4.3168]
[1737187839740,35.00913444,231.7,231.63,4.317]
[1737187840627,35.07213444,231.75,231.67,35.00913444]
[1737187840939,0.063,231.75,231.72,35.00913444]
[1737187841242,0.063,231.75,231.74,35.00913444]
[1737187842722,0.063,231.75,231.74,39.32423444]
[1737187847241,0.063,231.77,231.76,20.0]
[1737187847437,0.063,231.77,231.76,41.42223342]
[1737187847842,0.063,231.77,231.76,21.42223342]
[1737187848729,0.063,231.77,231.76,25.73703342]
[1737187849325,0.063,231.77,231.74,21.42223342]
[1737187849720,0.063,231.77,231.76,21.42223342]
[1737187850818,0.063,231.77,231.73,21.42223342]
[1737187851333,0.063,231.77,231.75,21.42223342]
[1737187851735,0.063,231.77,231.73,21.42223342]
[1737187851949,4.3776,231.77,231.71,21.42223342]
[1737187852165,21.42223342,231.76,231.68,21.42223342]
[1737187852446,21.42223342,231.69,231.59,21.42223342]
[1737187852625,21.42223342,231.71,231.63,21.42223342]
[1737187852830,10.4762,231.77,231.58,4.3181]
[1737187852831,21.42223342,231.76,231.58,4.3181]
[1737187853159,21.42223342,231.7,231.6,21.42223342]
[1737187853334,21.42223342,231.68,231.6,21.42223342]
[1737187853750,21.42223342,231.64,231.56,26.68223342]
[1737187854554,21.42223342,231.64,231.57,5.24]
[1737187855153,21.42223342,231.64,231.58,4.3181]
[1737187855368,21.42223342,231.62,231.52,21.42223342]
[1737187855550,21.42223342,231.62,231.54,30.98093342]
[1737187857237,21.42223342,231.62,231.57,20.0]
[1737187857445,21.42223342,231.66,231.58,25.74033342]
[1737187858034,21.42223342,231.66,231.58,4.3181]
[1737187858235,21.42223342,231.66,231.59,20.0]
[1737187858753,21.42223342,231.68,231.59,20.0]
[1737187858961,1.6556,231.71,231.64,21.42223342]
[1737187859138,21.42223342,231.74,231.66,21.42223342]
[1737187860247,21.42223342,231.76,231.68,21.42223342]
[1737187860451,21.42223342,231.76,231.69,5.2]
[1737187860649,21.42223342,231.76,231.71,20.0]
[1737187860855,21.42223342,231.76,231.69,5.2]
[1737187861039,21.42223342,231.76,231.71,20.0]
[1737187861275,0.063,231.77,231.71,20.0]
[1737187862180,0.063,231.77,231.73,20.0]
[1737187862779,0.063,231.77,231.71,0.03]
[1737187863178,0.063,231.77,231.73,20.0]
[1737187863787,0.063,231.77,231.75,20.0]
[1737187865080,0.063,231.77,231.76,4.3148]
[1737187865682,0.063,231.77,231.76,45.73703342]
[1737187866066,21.42223342,231.86,231.78,21.42223342]
[1737187867080,21.42223342,231.86,231.81,20.0]
[1737187867288,21.42223342,231.88,231.8,21.42223342]
[1737187867482,21.42223342,231.9,231.85,20.0]
[1737187867785,21.42223342,231.93,231.86,5.1]
[1737187867985,21.42223342,231.91,231.86,5.1]
[1737187868401,21.42223342,231.89,231.86,5.1]
[1737187868569,21.42223342,231.91,231.86,5.1]
[1737187869387,21.42223342,231.91,231.86,9.4128]
[1737187869574,4.3116,231.93,231.81,21.42223342]
[1737187869779,21.42223342,231.89,231.81,21.42223342]
[1737187870078,21.42223342,231.87,231.79,21.42223342]
[1737187870394,21.42223342,231.89,231.82,20.0]
[1737187870699,21.42223342,231.93,231.85,21.42223342]
[1737187871184,0.063,231.94,231.92,20.0]
[1737187871366,0.063,231.94,231.86,0.64678294]
[1737187871367,0.063,231.94,231.93,50.83383342]